Workbook

Sheet Table 1
A1: TABLE 1: | C1: Registrations* and timeliness** reported by registries as at 30/06/08
L2: 2006 Numbers | N2: 2006 complete by 30/06/08 | O2: Population
A3: Registry | C3: 1997 | D3: 1998 | E3: 1999 | F3: 2000 | G3: 2001 | H3: 2002 | I3: 2003 | J3: 2004 | K3: 2005 | L3: Initial £ | M3: ONS ready £ | N3: % ONS ready*** | O3: 2005 (for new areas) ^
A4: England (total) | C4: =SUM(C5:C12) -> 223106 | D4: =SUM(D5:D12) -> 223293 | E4: 227296 | F4: 230077 | G4: 233291 | H4: 232199 | I4: 236150 | J4: 240372 | K4: 242945 | L4: 574 | M4: 240441 | N4: =M4/((I4+J4+K4)/3)*100 -> 100.2579687 | O4: =SUM(O5:O12) -> 50393886
B5: Eastern ^ | C5: 24479 | D5: 23966 | E5: 24513 | F5: 25012 | G5: 25109 | H5: 25361 | I5: 25724 | J5: 25749 | K5: 26540 | L5: 0 | M5: 25826 | N5: 99.31421686 | O5: 5491293
B6: North West | C6: 31050 | D6: 31469 | E6: 32205 | F6: 32260 | G6: 33039 | H6: 32294 | I6: 32331 | J6: 32704 | K6: 32968 | L6: 0 | M6: 33138 | N6: 101.4397518 | O6: 6554131
B7: Northern & Yorkshire | C7: 30568 | D7: 31610 | E7: 31487 | F7: 32481 | G7: 33114 | H7: 33497 | I7: 34090 | J7: 33882 | K7: 34060 | L7: 574 | M7: 32557 | N7: 95.72585071 | O7: 6688399
B8: Oxford | C8: 10662 | D8: 11321 | E8: 11652 | F8: 11532 | G8: 11749 | H8: 11695 | I8: 11907 | J8: 12674 | K8: 12333 | L8: 0 | M8: 12343 | N8: 100.3115349 | O8: 2803176
B9: South & West | C9: 33678 | D9: 32759 | E9: 34424 | F9: 34347 | G9: 36051 | H9: 35492 | I9: 36471 | J9: 37782 | K9: 38438 | L9: 0 | M9: 38170 | N9: 101.6141484 | O9: 6905984
B10: Thames ^ | C10: 47874 | D10: 46761 | E10: 46369 | F10: 47243 | G10: 46883 | H10: 46271 | I10: 46894 | J10: 47209 | K10: 47755 | L10: 0 | M10: 47217 | N10: 99.85407943 | O10: 11677739
B11: Trent | C11: 21316 | D11: 21099 | E11: 22136 | F11: 22937 | G11: 22963 | H11: 22660 | I11: 23364 | J11: 24509 | K11: 24970 | L11: 0 | M11: 25309 | N11: 104.233763 | O11: 4922454
B12: West Midlands | C12: 23479 | D12: 24308 | E12: 24510 | F12: 24265 | G12: 24383 | H12: 24929 | I12: 25369 | J12: 25863 | K12: 25881 | L12: 0 | M12: 25881 | N12: 100.687303 | O12: 5350710
A13: Scotland | C13: 26192 | D13: 25806 | E13: 25827 | F13: 26117 | G13: 26070 | H13: 26628 | I13: 26864 | J13: 27488 | K13: 26641 | L13: 22046 | M13: 13022 | N13: 48.23379798 | O13: 5094800
A14: Wales | C14: 14934 | D14: 14737 | E14: 15306 | F14: 15492 | G14: 15724 | H14: 15839 | I14: 16300 | J14: 16860 | K14: 16669 | L14: 0 | M14: 17130 | N14: 103.1327139 | O14: 2953550
A15: Northern Ireland | C15: 6312 | D15: 6435 | E15: 6334 | F15: 6500 | G15: 6539 | H15: 6779 | I15: 7013 | J15: 7122 | K15: 7121 | L15: 0 | M15: 7318 | N15: 103.2837787 | O15: 1741619
A16: UK Total | C16: =SUM(C5:C15) -> 270544 | D16: =SUM(D5:D15) -> 270271 | E16: 274763 | F16: 278186 | G16: 281624 | H16: 281445 | I16: 286327 | J16: 291842 | K16: 293376 | L16: 22620 | M16: 277911 | N16: 95.66149769 | O16: =SUM(O5:O15) -> 60183855
M17: Target: | N17: 100%**
A18: * All invasive cases excluding non-melanoma skin cancer
A19: ** For the English and Welsh Registries, all cases diagnosed in a given calendar year should have been completed, entered onto the registry computer system and sent to ONS within 18 months of the end of the calendar year.
A20: Additionally, Wales will have a target of 100% completeness within 12 months of the end of the calendar year
A21: ***The percentage classified as being ONS Ready is compared to the average number of registrations in 2003-2005
A22: £ Initial covers cases where not all the basic information has been received or validity has not been confirmed. ONS ready is defined as "of a standard usable for analysis and in publications"
A23: # The percentage complete for ONS Received is compared to the number of Initial plus the ONS Ready cases for 2006. These may be over 100% if registries have sent records to ONS already which they
A24: subsequently cancel/amend on their own database but have not yet sent these changes through to ONS
A25: ^ Population defined using Lower Super Output Area populations for 2005 on UKACR website www.ukacr.org
A26: Due to the low completeness for 2006 data for Scotland, 2005 data will be presented in the rest of the report; the highlighted figure shows this
A27: Note: Even in cancer registries which rely on active notification of cases, cancer incidence figures do not reach stability for some years after the end of a given year because of a small but steady stream of late registrations, some
A28: of which first come to the attention of the registry through death certification

Sheet Tables1_2_3
A1: Standard Proforma for Reporting Registry Performance
E2: red text = UK/England don’t meet target
F3: strange compared to UK/England
F4: peer review or target/expected value not met
A6: All xnmsc unless stated
A7: Table No. & Parameters | B7: Cancer Peer Review Standard | C7: Target /Expected Value | D7: UK Av | E7: England Average | F7: ECRIC | G7: NWCIS | H7: NYCRIS | I7: OCIU | J7: SWCIS | K7: Thames | L7: Trent | M7: WMCIU | N7: Scotland | O7: WCISU | P7: NICR
A8: Table 1 Registrations and timeliness
A9: % ONS ready | B9: 100% +2% | C9: 100% +2% | D9: 95.66149769 | E9: 100.2579687 | F9: 99.31421686 | G9: 101.4397518 | H9: 95.72585071 | I9: 100.3115349 | J9: 101.6141484 | K9: 99.85407943 | L9: 104.233763 | M9: 100.687303 | N9: 48.23379798 | O9: 103.1327139 | P9: 103.2837787
A10: Table 2A % change in registrations - males
A11: Lung | B11: +2% | D11: -0.8272727273 | E11: -0.7875 | F11: 4.3 | G11: -4 | H11: -3.8 | I11: -0.5 | J11: 0.2 | K11: 0.9 | L11: -3.4 | M11: 0 | N11: -1.1 | O11: 1 | P11: -2.7
A12: Melanoma of skin | B12: +2% | D12: 12.58181818 | E12: 12.95 | F12: -24.1 | G12: 14.1 | H12: 23.8 | I12: 35.4 | J12: 5 | K12: 21.6 | L12: 17.6 | M12: 10.2 | N12: 5 | O12: 15.8 | P12: 14
A13: Colorectal | B13: +2% | D13: 1.145454545 | E13: 0.7375 | F13: -3 | G13: 6 | H13: 0.8 | I13: -0.1 | J13: 3.3 | K13: 1.3 | L13: 2.4 | M13: -4.8 | N13: -1.3 | O13: 5.9 | P13: 2.1
A14: Prostate | B14: +2% | D14: 0.8181818182 | E14: 1.05 | F14: 1 | G14: -1.7 | H14: -2.5 | I14: -2.3 | J14: -0.2 | K14: 0.7 | L14: 12.5 | M14: 0.9 | N14: -3.4 | O14: -1.1 | P14: 5.1
A15: Bladder | B15: +2% | D15: -1.545454545 | E15: -2.6875 | F15: -0.8 | G15: -0.1 | H15: -8.5 | I15: 1 | J15: 1.1 | K15: -11.1 | L15: 3.2 | M15: -6.3 | N15: -7.8 | O15: 11.4 | P15: 0.9
A16: Haematology | B16: +2% | D16: 2.281818182 | E16: 1 | F16: 7.5 | G16: 8.3 | H16: -11.1 | I16: -6.7 | J16: 5 | K16: -0.5 | L16: 4 | M16: 1.5 | N16: -1.7 | O16: 4.4 | P16: 14.4
A17: All xnmsc | B17: +2% | D17: 1.236363636 | E17: 0.8375 | F17: 1.7 | G17: 0.9 | H17: -3.2 | I17: -0.5 | J17: 2.1 | K17: 0.7 | L17: 4.4 | M17: 0.6 | N17: -2.2 | O17: 3.4 | P17: 5.7
A18: Table 2B % change in registrations - females
A19: Lung | B19: +2% | D19: 0.5727272727 | E19: 1.0125 | F19: -5.5 | G19: -2.2 | H19: -1.8 | I19: 10.5 | J19: -3 | K19: -0.2 | L19: 5 | M19: 5.3 | N19: -1.3 | O19: 9.3 | P19: -9.8
A20: Breast Invasive | B20: +2% | D20: -0.3909090909 | E20: 0.35 | F20: 3.5 | G20: 0.3 | H20: -1.5 | I20: -4 | J20: 0.9 | K20: -2.8 | L20: 6.3 | M20: 0.1 | N20: 1.6 | O20: 2.3 | P20: -11
A21: Breast In Situ | C21: +2% | D21: 13.03636364 | E21: 10.7875 | F21: 12.8 | G21: 10.2 | H21: 15.2 | I21: -6.7 | J21: 26.4 | K21: 17.5 | L21: 1.1 | M21: 9.8 | N21: 12.9 | O21: 23.6 | P21: 20.6
A22: Cervix Invasive | B22: +2% | D22: 2.309090909 | E22: 0.575 | F22: -0.5 | G22: 5.7 | H22: 3.6 | I22: -0.3 | J22: -2.7 | K22: -11.1 | L22: 11.7 | M22: -1.8 | N22: 5.4 | O22: -7.4 | P22: 22.8
A23: Cervix In Situ | C23: +2% | D23: -4.009090909 | E23: -6.425 | F23: -0.1 | G23: -0.3 | H23: -17.5 | I23: -23.9 | J23: -11.7 | K23: 7.8 | L23: 17.2 | M23: -22.9 | N23: 0.1 | O23: 2.9 | P23: 4.3
A24: Melanoma of skin | B24: +2% | D24: 9.063636364 | E24: 10.3625 | F24: -5 | G24: 28.7 | H24: 1.3 | I24: 9.3 | J24: 5.1 | K24: 28.9 | L24: 17.2 | M24: -2.6 | N24: -3.5 | O24: 3.7 | P24: 16.6
A25: Colorectal | B25: +2% | D25: 1.354545455 | E25: 0.275 | F25: -7.1 | G25: 2.2 | H25: -1.2 | I25: 1 | J25: -1 | K25: 1.3 | L25: 3.5 | M25: 3.5 | N25: -0.8 | O25: 6.9 | P25: 6.6
A26: Bladder | B26: +2% | D26: -0.9363636364 | E26: -1.8125 | F26: -5.4 | G26: 0.5 | H26: -10.9 | I26: -2.1 | J26: -1.8 | K26: -5.3 | L26: 3 | M26: 7.5 | N26: -3 | O26: 2.2 | P26: 5
A27: Haematology | B27: +2% | D27: 1.309090909 | E27: -0.7 | F27: 4.9 | G27: 0.1 | H27: -10.9 | I27: -1.4 | J27: 5.6 | K27: -3.6 | L27: -1.5 | M27: 1.2 | N27: 1.2 | O27: 5.7 | P27: 13.1
A28: All xnmsc | B28: +2% | D28: 0.5545454545 | E28: 0.35 | F28: 0.1 | G28: 1.3 | H28: -4.7 | I28: 1.1 | J28: 1.1 | K28: -1 | L28: 4.1 | M28: 0.8 | N28: -0.5 | O28: 2.9 | P28: 0.9
A29: Table 2C Childhood cancer incidence rates
A30: Age 0-4
A31: M | C31: 19.6 | D31: 19.39967564 | E31: 19.2 | F31: 14.7 | G31: 16.3 | H31: 16 | I31: 12.3 | J31: 25.6 | K31: 25.1 | L31: 27.7 | M31: 15.9 | N31: 23.6 | O31: 17.1 | P31: 19.1
A32: F | C32: 17.2 | D32: 18.36470377 | E32: 17.75 | F32: 21.3 | G32: 14.9 | H32: 9.5 | I32: 22.1 | J32: 21.8 | K32: 18.9 | L32: 19.4 | M32: 14.1 | N32: 17 | O32: 19.4 | P32: 23.7
A33: Age 5-9
A34: M | C34: 11.4 | D34: 12.34379994 | E34: 12.8625 | F34: 14 | G34: 11 | H34: 11.1 | I34: 15.9 | J34: 14.5 | K34: 13.6 | L34: 12.4 | M34: 10.4 | N34: 6.8 | O34: 17.8 | P34: 8.3
A35: F | C35: 9 | D35: 8.372723779 | E35: 7.7125 | F35: 7.3 | G35: 9.5 | H35: 6.9 | I35: 6 | J35: 6.8 | K35: 6.5 | L35: 12.3 | M35: 6.4 | N35: 6.5 | O35: 11.7 | P35: 12.3
A36: Age 10-14
A37: M | C37: 11.5 | D37: 13.1164296 | E37: 13.0125 | F37: 12.1 | G37: 13 | H37: 11.8 | I37: 9.5 | J37: 14.1 | K37: 13.7 | L37: 17.9 | M37: 12 | N37: 13 | O37: 16.2 | P37: 10.9
A38: F | C38: 9.5 | D38: 10.18527548 | E38: 9.225 | F38: 9.8 | G38: 7.1 | H38: 7.2 | I38: 10.3 | J38: 10.1 | K38: 10.2 | L38: 7.2 | M38: 11.9 | N38: 8.4 | O38: 14.9 | P38: 14.8
A39: Table 2D % death certificate only (males & females) "traditional" DCO
A40: Lung | B40: 0.02 | C40: 0.02 | D40: 5.118181818 | E40: 6.1125 | F40: 2.3 | G40: 8.1 | H40: 3.3 | I40: 4.4 | J40: 1.9 | K40: 4.7 | L40: 3.5 | M40: 20.7 | N40: 0.7 | O40: 5.5 | P40: 1.2
A41: Breast Invasive | B41: 0.02 | C41: 0.02 | D41: 0.8909090909 | E41: 1.025 | F41: 0.4 | G41: 1.3 | H41: 0.4 | I41: 0.6 | J41: 0.8 | K41: 1.1 | L41: 1.1 | M41: 2.5 | N41: 0.4 | O41: 1 | P41: 0.2
A42: Cervix Invasive | B42: 0.02 | C42: 0.02 | D42: 1.145454545 | E42: 1.375 | F42: 0 | G42: 1.1 | H42: 0.4 | I42: 4.3 | J42: 0.3 | K42: 0.8 | L42: 1 | M42: 3.1 | N42: 0.3 | O42: 1.3 | P42: 0
A43: Melanoma of skin | B43: 0.02 | C43: 0.02 | D43: 0.4 | E43: 0.4 | F43: 0.3 | G43: 0.3 | H43: 0.4 | I43: 0.4 | J43: 0.3 | K43: 0.8 | L43: 0.6 | M43: 0.1 | N43: 0 | O43: 0.8 | P43: 0.4
A44: Colorectal | B44: 0.02 | C44: 0.02 | D44: 2.254545455 | E44: 2.7375 | F44: 1 | G44: 3.8 | H44: 1.2 | I44: 1.8 | J44: 0.9 | K44: 2.7 | L44: 1.3 | M44: 9.2 | N44: 0.6 | O44: 1.9 | P44: 0.4
A45: Prostate | B45: 0.02 | C45: 0.02 | D45: 1.745454545 | E45: 2.125 | F45: 0.7 | G45: 2.9 | H45: 0.9 | I45: 2 | J45: 0.8 | K45: 2.1 | L45: 1.7 | M45: 5.9 | N45: 0.2 | O45: 1.6 | P45: 0.4
A46: Bladder | B46: 0.02 | C46: 0.02 | D46: 1.963636364 | E46: 2.525 | F46: 0.9 | G46: 2.8 | H46: 1.1 | I46: 2.4 | J46: 1 | K46: 3.3 | L46: 1.2 | M46: 7.5 | N46: 0 | O46: 0.9 | P46: 0.5
A47: Haematology | B47: 0.02 | C47: 0.02 | D47: 3.490909091 | E47: 4.325 | F47: 1.6 | G47: 6.8 | H47: 1.3 | I47: 2.7 | J47: 1.7 | K47: 2.7 | L47: 2.8 | M47: 15 | N47: 0.2 | O47: 2.5 | P47: 1.1
A48: III-defined sites | C48: 0.02 | D48: 11.66363636 | E48: 13.9875 | F48: 3.7 | G48: 23.1 | H48: 5.2 | I48: 10.9 | J48: 7.7 | K48: 7.6 | L48: 7.4 | M48: 46.3 | N48: 3.3 | O48: 12.2 | P48: 0.9
A49: All xnmsc Male | B49: 0.02 | C49: 0.02 | D49: 3.009090909 | E49: 3.6375 | F49: 1.3 | G49: 4.8 | H49: 1.7 | I49: 2.6 | J49: 1.3 | K49: 3 | L49: 2.3 | M49: 12.1 | N49: 0.5 | O49: 2.6 | P49: 0.9
A50: All xnmsc Female | B50: 0.02 | C50: 0.02 | D50: 3.081818182 | E50: 3.6125 | F50: 1 | G50: 4.8 | H50: 1.6 | I50: 2.6 | J50: 1.6 | K50: 3 | L50: 2.2 | M50: 12.1 | N50: 0.8 | O50: 2.9 | P50: 1.3
A51: All xnmsc M<75 | C51: 0.02 | D51: 1.518181818 | E51: 1.875 | F51: 0.9 | G51: 2.6 | H51: 1 | I51: 1.1 | J51: 0.5 | K51: 1.7 | L51: 1.1 | M51: 6.1 | N51: 0.2 | O51: 1.4 | P51: 0.1
A52: All xnmsc M>=75 | C52: 0.02 | D52: 5.490909091 | E52: 6.65 | F52: 2 | G52: 8.5 | H52: 3 | I52: 5.2 | J52: 2.5 | K52: 5.4 | L52: 4.3 | M52: 22.3 | N52: 0.9 | O52: 4.5 | P52: 1.8
A53: All xnmsc F<75 | C53: 0.02 | D53: 0.9909090909 | E53: 1.2125 | F53: 0.7 | G53: 1.7 | H53: 0.7 | I53: 1.1 | J53: 0.4 | K53: 1.1 | L53: 0.8 | M53: 3.2 | N53: 0.2 | O53: 1 | P53: 0
A54: All xnmsc F>=75 | C54: 0.02 | D54: 6.590909091 | E54: 7.6625 | F54: 1.7 | G54: 10.4 | H54: 3.3 | I54: 5.7 | J54: 3.8 | K54: 6.2 | L54: 4.8 | M54: 25.4 | N54: 1.9 | O54: 6.3 | P54: 3
A55: Table 2E % "true" DCO (males & females)
A56: Lung | B56: 0.02 | C56: 0.02 | D56: 3.054545455 | E56: 3.275 | F56: 2.3 | G56: 8.1 | H56: 2.6 | I56: 4.4 | J56: 1.9 | K56: 4.7 | L56: 2.2 | M56: 0 | N56: 0.7 | O56: 5.5 | P56: 1.2
A57: Breast Invasive | B57: 0.02 | C57: 0.02 | D57: 0.6272727273 | E57: 0.6625 | F57: 0.4 | G57: 1.3 | H57: 0.4 | I57: 0.6 | J57: 0.8 | K57: 1.1 | L57: 0.7 | M57: 0 | N57: 0.4 | O57: 1 | P57: 0.2
A58: Cervix Invasive | B58: 0.02 | C58: 0.02 | D58: 0.7545454545 | E58: 0.8375 | F58: 0 | G58: 1.1 | H58: 0.2 | I58: 4.3 | J58: 0.3 | K58: 0.8 | L58: 0 | M58: 0 | N58: 0.3 | O58: 1.3 | P58: 0
A59: Melanoma of skin | B59: 0.02 | C59: 0.02 | D59: 0.3272727273 | E59: 0.3 | F59: 0.3 | G59: 0.3 | H59: 0.2 | I59: 0.4 | J59: 0.3 | K59: 0.8 | L59: 0.1 | M59: 0 | N59: 0 | O59: 0.8 | P59: 0.4
A60: Colorectal | B60: 0.02 | C60: 0.02 | D60: 1.363636364 | E60: 1.5125 | F60: 1 | G60: 3.8 | H60: 1 | I60: 1.8 | J60: 0.9 | K60: 2.7 | L60: 0.8 | M60: 0.1 | N60: 0.6 | O60: 1.9 | P60: 0.4
A61: Prostate | B61: 0.02 | C61: 0.02 | D61: 1.118181818 | E61: 1.2625 | F61: 0.7 | G61: 2.9 | H61: 0.6 | I61: 2 | J61: 0.8 | K61: 2.1 | L61: 1 | M61: 0 | N61: 0.2 | O61: 1.6 | P61: 0.4
A62: Bladder | B62: 0.02 | C62: 0.02 | D62: 1.245454545 | E62: 1.5375 | F62: 0.9 | G62: 2.8 | H62: 0.9 | I62: 2.4 | J62: 1 | K62: 3.3 | L62: 0.9 | M62: 0.1 | N62: 0 | O62: 0.9 | P62: 0.5
A63: Haematology | B63: 0.02 | C63: 0.02 | D63: 1.972727273 | E63: 2.2375 | F63: 1.6 | G63: 6.8 | H63: 0.9 | I63: 2.7 | J63: 1.7 | K63: 2.7 | L63: 1.4 | M63: 0.1 | N63: 0.2 | O63: 2.5 | P63: 1.1
A64: III-defined sites | C64: 0.02 | D64: 7.045454545 | E64: 7.6375 | F64: 3.7 | G64: 23.1 | H64: 3.9 | I64: 10.9 | J64: 7.7 | K64: 7.6 | L64: 4.2 | M64: 0 | N64: 3.3 | O64: 12.2 | P64: 0.9
A65: All xnmsc Male | B65: 0.02 | C65: 0.02 | D65: 1.790909091 | E65: 1.9625 | F65: 1.3 | G65: 4.8 | H65: 1.3 | I65: 2.6 | J65: 1.3 | K65: 3 | L65: 1.4 | M65: 0 | N65: 0.5 | O65: 2.6 | P65: 0.9
A66: All xnmsc Female | B66: 0.02 | C66: 0.02 | D66: 1.872727273 | E66: 1.95 | F66: 1 | G66: 4.8 | H66: 1.4 | I66: 2.6 | J66: 1.6 | K66: 3 | L66: 1.2 | M66: 0 | N66: 0.8 | O66: 2.9 | P66: 1.3
A67: All xnmsc M<75 | C67: 0.02 | D67: 0.8909090909 | E67: 1.0125 | F67: 0.9 | G67: 2.6 | H67: 0.7 | I67: 1.1 | J67: 0.5 | K67: 1.7 | L67: 0.6 | M67: 0 | N67: 0.2 | O67: 1.4 | P67: 0.1
A68: All xnmsc M>=75 | C68: 0.02 | D68: 3.254545455 | E68: 3.575 | F68: 2 | G68: 8.5 | H68: 2.3 | I68: 5.2 | J68: 2.5 | K68: 5.4 | L68: 2.7 | M68: 0 | N68: 0.9 | O68: 4.5 | P68: 1.8
A69: All xnmsc F<75 | C69: 0.02 | D69: 0.6636363636 | E69: 0.7625 | F69: 0.7 | G69: 1.7 | H69: 0.6 | I69: 1.1 | J69: 0.4 | K69: 1.1 | L69: 0.5 | M69: 0 | N69: 0.2 | O69: 1 | P69: 0
A70: All xnmsc F>=75 | C70: 0.02 | D70: 4.054545455 | E70: 4.175 | F70: 1.7 | G70: 10.4 | H70: 2.8 | I70: 5.7 | J70: 3.8 | K70: 6.2 | L70: 2.7 | M70: 0.1 | N70: 1.9 | O70: 6.3 | P70: 3
A71: Table 2F % Zero survival (males & females)
A72: Lung | D72: 7.181818182 | E72: 8.525 | F72: 5 | G72: 8.2 | H72: 5.3 | I72: 6.8 | J72: 7.3 | K72: 7.3 | L72: 6.8 | M72: 21.5 | N72: 2.3 | O72: 6.6 | P72: 1.9
A73: Breast Invasive | D73: 1.381818182 | E73: 1.6625 | F73: 0.5 | G73: 4.3 | H73: 0.6 | I73: 0.8 | J73: 1.4 | K73: 1.4 | L73: 1.7 | M73: 2.6 | N73: 0.5 | O73: 1.2 | P73: 0.2
A74: Cervix Invasive | D74: 1.409090909 | E74: 1.7375 | F74: 1 | G74: 1.1 | H74: 0.4 | I74: 4.3 | J74: 1.3 | K74: 1 | L74: 1.7 | M74: 3.1 | N74: 0.3 | O74: 1.3 | P74: 0
A75: Melanoma of skin | D75: 0.4636363636 | E75: 0.4625 | F75: 0.3 | G75: 0.3 | H75: 0.4 | I75: 0.4 | J75: 0.5 | K75: 0.9 | L75: 0.8 | M75: 0.1 | N75: 0 | O75: 1 | P75: 0.4
A76: Colorectal | D76: 3.263636364 | E76: 3.925 | F76: 2.5 | G76: 4 | H76: 2.2 | I76: 3.2 | J76: 3.4 | K76: 4 | L76: 2.5 | M76: 9.6 | N76: 1.3 | O76: 2.5 | P76: 0.7
A77: Prostate | D77: 2.245454545 | E77: 2.7 | F77: 1.2 | G77: 3 | H77: 1.4 | I77: 2.7 | J77: 2 | K77: 2.8 | L77: 2.5 | M77: 6 | N77: 0.5 | O77: 2 | P77: 0.6
A78: Bladder | D78: 2.709090909 | E78: 3.425 | F78: 2.2 | G78: 2.8 | H78: 1.7 | I78: 3.2 | J78: 2.9 | K78: 4.5 | L78: 2.6 | M78: 7.5 | N78: 0 | O78: 1.2 | P78: 1.2
A79: Haematology | D79: 4.509090909 | E79: 5.525 | F79: 3.1 | G79: 6.8 | H79: 2.3 | I79: 3.5 | J79: 4.6 | K79: 4.2 | L79: 4.4 | M79: 15.3 | N79: 0.9 | O79: 3.3 | P79: 1.2
A80: III-defined sites | D80: 14.76363636 | E80: 17.65 | F80: 7.5 | G80: 23.1 | H80: 9.8 | I80: 15 | J80: 15.2 | K80: 12.6 | L80: 11 | M80: 47 | N80: 5.1 | O80: 14.7 | P80: 1.4
A81: All xnmsc Male | D81: 4.072727273 | E81: 4.8875 | F81: 2.8 | G81: 4.9 | H81: 3 | I81: 3.7 | J81: 3.8 | K81: 4.6 | L81: 3.9 | M81: 12.4 | N81: 1.3 | O81: 3.1 | P81: 1.3
A82: All xnmsc Female | D82: 4.109090909 | E82: 4.825 | F82: 2.4 | G82: 4.9 | H82: 2.7 | I82: 3.8 | J82: 4.3 | K82: 4.4 | L82: 3.7 | M82: 12.4 | N82: 1.5 | O82: 3.6 | P82: 1.5
A83: All xnmsc M<75 | D83: 2.209090909 | E83: 2.625 | F83: 1.8 | G83: 2.8 | H83: 1.7 | I83: 1.7 | J83: 2 | K83: 2.6 | L83: 2 | M83: 6.4 | N83: 0.8 | O83: 1.7 | P83: 0.8
A84: All xnmsc M>=75 | D84: 7.345454545 | E84: 8.825 | F84: 4.6 | G84: 8.6 | H84: 5.3 | I84: 7.6 | J84: 6.7 | K84: 8 | L84: 7.1 | M84: 22.7 | N84: 2.4 | O84: 5.5 | P84: 2.3
A85: All xnmsc F<75 | D85: 1.472727273 | E85: 1.725 | F85: 1.2 | G85: 1.7 | H85: 1.2 | I85: 1.5 | J85: 1.5 | K85: 1.8 | L85: 1.5 | M85: 3.4 | N85: 0.7 | O85: 1.2 | P85: 0.5
A86: All xnmsc F>=75 | D86: 8.627272727 | E86: 10.025 | F86: 4.4 | G86: 10.6 | H86: 5.3 | I86: 8.5 | J86: 9 | K86: 9 | L86: 7.6 | M86: 25.8 | N86: 3.2 | O86: 7.9 | P86: 3.6
A87: Table 2G % microscopically verified (males & females)
A88: Lung | B88: 0.66 | C88: 66.734197 | D88: 69.46363636 | E88: 68.975 | F88: 67.8 | G88: 59.8 | H88: 70.7 | I88: 70.6 | J88: 69 | K88: 72.3 | L88: 72.7 | M88: 68.9 | N88: 73.6 | O88: 65.8 | P88: 72.9
A89: Breast Invasive | B89: 0.92 | C89: 94.72384217 | D89: 96.41818182 | E89: 96.3625 | F89: 97.5 | G89: 91.9 | H89: 98.3 | I89: 97.3 | J89: 96.3 | K89: 96.2 | L89: 96.5 | M89: 96.9 | N89: 98.1 | O89: 92.8 | P89: 98.8
A90: Breast In Situ | C90: 97.83577584 | D90: 99.00909091 | E90: 99.475 | F90: 99.6 | G90: 98.3 | H90: 100 | I90: 100 | J90: 100 | K90: 97.9 | L90: 100 | M90: 100 | N90: 100 | O90: 93.3 | P90: 100
A91: Cervix Invasive | B91: 0.94 | C91: 95.52566169 | D91: 95.67272727 | E91: 95.625 | F91: 97.4 | G91: 90.9 | H91: 98 | I91: 93 | J91: 96.3 | K91: 96.2 | L91: 97.9 | M91: 95.3 | N91: 95.6 | O91: 92.9 | P91: 98.9
A92: Cervix In Situ | C92: 98.99949048 | D92: 99 | E92: 99.975 | F92: 100 | G92: 100 | H92: 100 | I92: 100 | J92: 100 | K92: 99.8 | L92: 100 | M92: 100 | N92: 100 | O92: 89.2 | P92: 100
A93: Melanoma of skin | B93: 0.96 | C93: 97.81327874 | D93: 97.6 | E93: 98.2125 | F93: 99.3 | G93: 93.7 | H93: 99.1 | I93: 99.5 | J93: 97.7 | K93: 98.2 | L93: 98.5 | M93: 99.7 | N93: 99.9 | O93: 88.8 | P93: 99.2
A94: Colorectal | B94: 0.87 | C94: 87.9746423 | D94: 88.9 | E94: 88.8875 | F94: 90.9 | G94: 83.7 | H94: 90.8 | I94: 91.4 | J94: 89.5 | K94: 88.8 | L94: 88.6 | M94: 87.4 | N94: 91.4 | O94: 84.9 | P94: 90.5
A95: Prostate | B95: 0.86 | C95: 88.69459737 | D95: 89.03636364 | E95: 89.425 | F95: 85.5 | G95: 88.8 | H95: 94.8 | I95: 92.2 | J95: 87.8 | K95: 89.1 | L95: 87.2 | M95: 90 | N95: 91.1 | O95: 83 | P95: 89.9
A96: Bladder | B96: 0.89 | C96: 89.96384536 | D96: 89.89090909 | E96: 90.9875 | F96: 92.2 | G96: 86.8 | H96: 93.8 | I96: 92.2 | J96: 91 | K96: 89.8 | L96: 90.9 | M96: 91.2 | N96: 93.6 | O96: 85.6 | P96: 81.7
A97: Haematology | B97: 0.82 | C97: 86.69630637 | D97: 86.25454545 | E97: 89.825 | F97: 94.9 | G97: 76.3 | H97: 96.3 | I97: 95.6 | J97: 88.3 | K97: 92.5 | L97: 94.8 | M97: 79.9 | N97: 96.1 | O97: 72.7 | P97: 61.4
A98: All xnmsc Male | B98: 0.8 | C98: 81.78852378 | D98: 83.51818182 | E98: 84.325 | F98: 84.8 | G98: 77.7 | H98: 86.9 | I98: 86.8 | J98: 82.4 | K98: 84.6 | L98: 83.6 | M98: 87.8 | N98: 86 | O98: 77 | P98: 81.1
A99: All xnmsc Female | B99: 0.81 | C99: 82.95124021 | D99: 84.98181818 | E99: 85.775 | F99: 86.5 | G99: 77.9 | H99: 89.9 | I99: 88.2 | J99: 84.6 | K99: 85.3 | L99: 85.9 | M99: 87.9 | N99: 86.8 | O99: 79.1 | P99: 82.7
A100: Table 2H % Non-specificity of morphology codes for cases which are microscopically verified
A101: Lung | D101: 8.809090909 | E101: 5.1 | F101: 4.7 | G101: 6.8 | H101: 4.2 | I101: 4.7 | J101: 0 | K101: 11.8 | L101: 5.6 | M101: 3 | N101: 7.6 | O101: 15.1 | P101: 33.4
A102: Breast Invasive | D102: 4.154545455 | E102: 3.1 | F102: 3.5 | G102: 3 | H102: 3.2 | I102: 2.6 | J102: 2.6 | K102: 4.7 | L102: 3.4 | M102: 1.8 | N102: 3.7 | O102: 1.9 | P102: 15.3
A103: Breast In Situ | D103: 3.227272727 | E103: 0.8125 | F103: 0.2 | G103: 0.6 | H103: 2.7 | I103: 0 | J103: 1.2 | K103: 1.5 | L103: 0.3 | M103: 0 | N103: 3.9 | O103: 2 | P103: 23.1
A104: Cervix Invasive | D104: 2.272727273 | E104: 2.775 | F104: 2.7 | G104: 2.7 | H104: 1 | I104: 0 | J104: 1.3 | K104: 9.4 | L104: 3.9 | M104: 1.2 | N104: 0.7 | O104: 2.1 | P104: 0
A105: Cervix In Situ | D105: 0.2909090909 | E105: 0.3875 | F105: 0 | G105: 1.7 | H105: 0.1 | I105: 0 | J105: 0.3 | K105: 0.7 | L105: 0.3 | M105: 0 | N105: 0 | O105: 0 | P105: 0.1
A106: Melanoma of skin | D106: 0.009090909091 | E106: 0.0125 | F106: 0 | G106: 0 | H106: 0 | I106: 0 | J106: 0 | K106: 0 | L106: 0 | M106: 0.1 | N106: 0 | O106: 0 | P106: 0
A107: Colorectal | D107: 2.536363636 | E107: 2.2 | F107: 1.2 | G107: 1.5 | H107: 1.6 | I107: 1.3 | J107: 2.8 | K107: 6.1 | L107: 2.3 | M107: 0.8 | N107: 1.1 | O107: 5.7 | P107: 3.5
A108: Prostate | D108: 2.281818182 | E108: 1.5 | F108: 1.2 | G108: 1.5 | H108: 0.9 | I108: 1.4 | J108: 1 | K108: 2.9 | L108: 2.1 | M108: 1 | N108: 3.5 | O108: 9.2 | P108: 0.4
A109: Bladder | D109: 2.4 | E109: 2.4625 | F109: 1.6 | G109: 2.8 | H109: 2.4 | I109: 2.1 | J109: 2 | K109: 5 | L109: 2.8 | M109: 1 | N109: 1.5 | O109: 2.4 | P109: 2.8
A110: Haematology | D110: 5.563636364 | E110: 4.6625 | F110: 6.7 | G110: 5.1 | H110: 2.7 | I110: 2.6 | J110: 5.3 | K110: 5.9 | L110: 7.6 | M110: 1.4 | N110: 6.1 | O110: 6.5 | P110: 11.3
A111: All xnmsc Male | D111: 4.290909091 | E111: 3.3625 | F111: 2.9 | G111: 3.8 | H111: 1.9 | I111: 2.8 | J111: 2.8 | K111: 6.4 | L111: 4.3 | M111: 2 | N111: 4.2 | O111: 7.8 | P111: 8.3
A112: All xnmsc Female | D112: 4.954545455 | E112: 3.9375 | F112: 3.9 | G112: 4.2 | H112: 2.9 | I112: 3.2 | J112: 3.9 | K112: 6.8 | L112: 4.5 | M112: 2.1 | N112: 4.7 | O112: 6.6 | P112: 11.7
A113: Table 2I Mortality : Incidence ratios
A114: Lung | C114: 0.866707707 | D114: 0.8590909091 | E114: 0.8575 | F114: 0.88 | G114: 0.92 | H114: 0.87 | I114: 0.82 | J114: 0.86 | K114: 0.85 | L114: 0.82 | M114: 0.84 | N114: 0.88 | O114: 0.79 | P114: 0.92
A115: Breast Invasive | C115: 0.2745736267 | D115: 0.2754545455 | E115: 0.27125 | F115: 0.29 | G115: 0.27 | H115: 0.26 | I115: 0.28 | J115: 0.25 | K115: 0.3 | L115: 0.25 | M115: 0.27 | N115: 0.29 | O115: 0.27 | P115: 0.3
A116: Cervix Invasive | C116: 0.3834992997 | D116: 0.3681818182 | E116: 0.36 | F116: 0.39 | G116: 0.38 | H116: 0.33 | I116: 0.3 | J116: 0.41 | K116: 0.43 | L116: 0.28 | M116: 0.36 | N116: 0.43 | O116: 0.46 | P116: 0.28
A117: Melanoma of skin | C117: 0.1925199573 | D117: 0.1736363636 | E117: 0.17 | F117: 0.19 | G117: 0.16 | H117: 0.16 | I117: 0.15 | J117: 0.15 | K117: 0.2 | L117: 0.15 | M117: 0.2 | N117: 0.19 | O117: 0.17 | P117: 0.19
A118: Colorectal | C118: 0.4435323614 | D118: 0.4309090909 | E118: 0.43375 | F118: 0.41 | G118: 0.45 | H118: 0.44 | I118: 0.44 | J118: 0.42 | K118: 0.46 | L118: 0.41 | M118: 0.44 | N118: 0.45 | O118: 0.43 | P118: 0.39
A119: Prostate | C119: 0.293158943 | D119: 0.2772727273 | E119: 0.28125 | F119: 0.3 | G119: 0.28 | H119: 0.28 | I119: 0.26 | J119: 0.28 | K119: 0.3 | L119: 0.29 | M119: 0.26 | N119: 0.31 | O119: 0.24 | P119: 0.25
A120: Bladder | C120: 0.467203233 | D120: 0.4709090909 | E120: 0.47875 | F120: 0.46 | G120: 0.43 | H120: 0.5 | I120: 0.45 | J120: 0.46 | K120: 0.53 | L120: 0.48 | M120: 0.52 | N120: 0.64 | O120: 0.28 | P120: 0.43
A121: Haematology | C121: 0.5120621793 | D121: 0.4827272727 | E121: 0.50125 | F121: 0.56 | G121: 0.54 | H121: 0.55 | I121: 0.45 | J121: 0.44 | K121: 0.47 | L121: 0.48 | M121: 0.52 | N121: 0.48 | O121: 0.39 | P121: 0.43
A122: All xnmsc Male | C122: 0.5505122012 | D122: 0.5354545455 | E122: 0.53625 | F122: 0.54 | G122: 0.57 | H122: 0.56 | I122: 0.5 | J122: 0.5 | K122: 0.55 | L122: 0.53 | M122: 0.54 | N122: 0.6 | O122: 0.48 | P122: 0.52
A123: All xnmsc Female | C123: 0.5113391221 | D123: 0.5 | E123: 0.49625 | F123: 0.5 | G123: 0.54 | H123: 0.53 | I123: 0.46 | J123: 0.46 | K123: 0.51 | L123: 0.48 | M123: 0.49 | N123: 0.54 | O123: 0.49 | P123: 0.5
A124: Table 3A Completeness of the dataset - demographics and diagnostic details
A125: Patient's name | D125: 99.99692886 | E125: 100 | F125: 100 | G125: 100 | H125: 100 | I125: 100 | J125: 100 | K125: 100 | L125: 100 | M125: 100 | N125: 100 | O125: 100 | P125: 100
A126: Patient's address | D126: 99.91510126 | E126: 100 | F126: 100 | G126: 100 | H126: 100 | I126: 100 | J126: 100 | K126: 100 | L126: 100 | M126: 100 | N126: 100 | O126: 100 | P126: 99.1
A127: Sex | D127: 99.98181818 | E127: 99.975 | F127: 99.8 | G127: 100 | H127: 100 | I127: 100 | J127: 100 | K127: 100 | L127: 100 | M127: 100 | N127: 100 | O127: 100 | P127: 100
A128: Ethnicity | D128: 50.22102618 | E128: 65.25 | F128: 47.6 | G128: 74.5 | H128: 42.3 | I128: 73.8 | J128: 71 | K128: 31.1 | L128: 87.6 | M128: 94.1 | N128: 0.2 | O128: 30.2 | P128: 0
A129: Date of death (where dead) | D129: 99.99204645 | E129: 100 | F129: 100 | G129: 100 | H129: 100 | I129: 100 | J129: 100 | K129: 100 | L129: 100 | M129: 100 | N129: 99.9 | O129: 100 | P129: 100
A130: Postcode | B130: 1 | D130: 99.79071656 | E130: 99.9875 | F130: 100 | G130: 100 | H130: 100 | I130: 100 | J130: 100 | K130: 100 | L130: 100 | M130: 99.9 | N130: 100 | O130: 100 | P130: 97.8
A131: Date of birth | B131: 1 | D131: 100 | E131: 100 | F131: 100 | G131: 100 | H131: 100 | I131: 100 | J131: 100 | K131: 100 | L131: 100 | M131: 100 | N131: 100 | O131: 100 | P131: 100
A132: Unique health identifier | B132: 1 | D132: 96.74545455 | E132: 98.9875 | F132: 99.4 | G132: 96.6 | H132: 99.9 | I132: 99.8 | J132: 99.9 | K132: 97.1 | L132: 99.9 | M132: 99.3 | N132: 91.3 | O132: 99.9 | P132: 81.1
A133: Anniversary (diagnosis) date | B133: 1 | D133: 99.71329702 | E133: 99.6125 | F133: 100 | G133: 100 | H133: 98.7 | I133: 100 | J133: 100 | K133: 98.3 | L133: 100 | M133: 99.9 | N133: 100 | O133: 100 | P133: 100
A134: Site of primary growth | B134: >95% | D134: 96.19910881 | E134: 96.2 | F134: 100 | G134: 95.1 | H134: 95.3 | I134: 96.1 | J134: 96.4 | K134: 95.7 | L134: 95.4 | M134: 95.6 | N134: 96.1 | O134: 96.5 | P134: 95.9
A135: Type of growth | B135: >85% | D135: 87.42388612 | E135: 88.1 | F135: 100 | G135: 83.4 | H135: 87.3 | I135: 89.4 | J135: 87.5 | K135: 88 | L135: 86.5 | M135: 82.7 | N135: 87.8 | O135: 84.4 | P135: 84.6
A136: Behaviour of growth | B136: >98% | D136: 99.93074883 | E136: 99.9 | F136: 100 | G136: 100 | H136: 99.4 | I136: 100 | J136: 100 | K136: 99.8 | L136: 100 | M136: 100 | N136: 100 | O136: 100 | P136: 100
A137: Basis of diagnosis | B137: >96% | D137: 97.74310981 | E137: 99.1875 | F137: 99.6 | G137: 100 | H137: 99.3 | I137: 98.7 | J137: 100 | K137: 98.6 | L137: 97.3 | M137: 100 | N137: 99.3 | O137: 89.7 | P137: 92.7
A138: Table 3B Completeness of the dataset - treatment and screening information
A139: Therapeutic Surgery (% yes) | D139: 45.60909091 | E139: 44.8 | F139: 57.6 | G139: 41.5 | H139: 43.6 | I139: 46.7 | J139: 47.5 | K139: 43.9 | L139: 33.5 | M139: 44.1 | N139: 43 | O139: 54 | P139: 46.3
A140: Radiotherary (% yes) | D140: 17.76 | E140: 17.7375 | F140: 22.3 | G140: 23.3 | H140: 20.5 | I140: 20.4 | J140: 13 | K140: 16.8 | L140: 6.4 | M140: 19.2 | N140: 19.9 | O140: n/a | P140: 15.8
A141: Chemotherapy (% yes) | D141: 19.50909091 | E141: 18.4625 | F141: 24.1 | G141: 17.6 | H141: 24 | I141: 23.1 | J141: 16.1 | K141: 21.9 | L141: 8.5 | M141: 12.4 | N141: 26.1 | O141: 20.2 | P141: 20.6
A142: Breast cancer - Hormone (% yes) | D142: 33.21 | E142: 27.75 | F142: 43.3 | G142: 13.7 | H142: 57.7 | I142: 11.1 | J142: 16.3 | K142: 37.9 | L142: 16.6 | M142: 25.4 | N142: 48.2 | O142: n/a | P142: 61.9
A143: Prostate cancer - Hormone (% yes) | D143: 35.24 | E143: 31.475 | F143: 42 | G143: 32.3 | H143: 49.7 | I143: 29.6 | J143: 29.9 | K143: 30 | L143: 11.1 | M143: 27.2 | N143: 39.1 | O143: n/a | P143: 61.5
A144: Breast cancer - % screen detected for ages 50-67 | D144: 37.89090909 | E144: 34.775 | F144: 0 | G144: 0 | H144: 48.9 | I144: 50.5 | J144: 43.6 | K144: 35.1 | L144: 48.4 | M144: 51.7 | N144: 44.9 | O144: 49.3 | P144: 44.4
A145: Breast cancer - % with full screening category for ages 50-67 | D145: 52.4 | E145: 53.675 | F145: 0 | G145: 0 | H145: 91.7 | I145: 88.3 | J145: 49 | K145: 35.1 | L145: 70.2 | M145: 95.1 | N145: 94.6 | O145: n/a | P145: 0
A146: Cervical cancer - % screen detected for ages 25-67 | D146: 15.26 | E146: 14.25 | F146: 0 | G146: 0 | H146: 29.5 | I146: 41.3 | J146: 15 | K146: 0 | L146: 6.9 | M146: 21.3 | N146: 38.6 | O146: n/a | P146: 0
A147: Table 3C Completeness of the dataset - specific staging information including grade
A148: Stage - Breast cancer - % with known Bloom and Richardson grade | B148: >78% | D148: 83.01308218 | E148: 84.61613617 | F148: 88.9 | G148: 82.07272 | H148: 87.69 | I148: 87.2 | J148: 85.6654 | K148: 75.78051088 | L148: 81.02045847 | M148: 88.6 | N148: 83.06693307 | O148: 75.64788153 | P148: 77.5
A149: Stage - Breast cancer - % with known number of positive nodes | B149: >65% | D149: 69.8 | E149: 67.6 | F149: 72.3 | G149: 49.2 | H149: n/a | I149: 74.7 | J149: 69.439 | K149: 63.2923368 | L149: n/a | M149: 76.6 | N149: 76.36045931 | O149: n/a | P149: 76.2
A150: Stage - Breast cancer - % with known invasive size | B150: >65% | D150: 71.98829006 | E150: 70.59932997 | F150: 83.7 | G150: 55.10402 | H150: 81.48 | I150: 61.5 | J150: 74.0868 | K150: 61.2244898 | L150: n/a | M150: 77.1 | N150: 75.6993007 | O150: n/a | P150: 78
A151: Stage - Breast cancer - % with known NPI score | B151: >65% | D151: 63.14222588 | E151: 60.31971438 | F151: 68.7 | G151: 48.33755 | H151: n/a | I151: 57.7 | J151: 66.1122 | K151: 47.16853629 | L151: n/a | M151: 73.9 | N151: 70.31952072 | O151: n/a | P151: 72.9
A152: Stage - Colorectal cancer - % with known pathological Dukes stage | B152: >74% | D152: 66.40843165 | E152: 68.27010536 | F152: 86.9 | G152: 56.63399 | H152: 75.9 | I152: 69.3 | J152: 75.9361 | K152: 49.44976926 | L152: 63.54098361 | M152: 68.5 | N152: 76.37266355 | O152: 52.55924171 | P152: 55.4
A153: Stage - Cervical cancer - % with complete FIGO stage | B153: >70% | D153: 66.9 | E153: 69.59775386 | F153: 92.7 | G153: 25.46917 | H153: 90.18 | I153: 81.7 | J153: 74.6875 | K153: 46.34760705 | L153: n/a | M153: 76.1 | N153: 78.1 | O153: 10.32258065 | P153: 93.8
A154: Stage - Melanoma of the skin cancer - % with known Breslow thickness | B154: >80% | D154: 82.77036723 | E154: 83.83894853 | F154: 93.8 | G154: 68.98349 | H154: 89.15 | I154: 97.2 | J154: 76.2828 | K154: 65.15634971 | L154: n/a | M154: 96.3 | N154: 91.63722026 | O154: 53.09381238 | P154: 96.1
A155: Stage - Melanoma of the skin cancer - % with known Clarke level | B155: >80% | D155: 65.53070337 | E155: 61.76508897 | F155: 93.8 | G155: 67.41964 | H155: 92.26 | I155: 0 | J155: 77.195 | K155: 9.38098277 | L155: n/a | M155: 92.3 | N155: 81.74322733 | O155: 45.90818363 | P155: 95.3
A156: % NHS path labs not supplying data to the registry | D156: 2.2 | E156: 2.1 | F156: 0 | G156: 0 | H156: 0 | I156: 0 | J156: 0 | K156: 7.142857143 | L156: 10 | M156: 0 | N156: 0 | O156: 7.142857143 | P156: 0
A157: % NHS path labs not using valid breast grade | D157: 0 | E157: 0 | F157: 0 | G157: 0 | H157: 0 | I157: 0 | J157: 0 | K157: 0 | L157: 0 | M157: 0 | N157: 0 | O157: 0 | P157: 0
A158: Table 4A 2 year % completeness of ascertainment using the Flow method
A159: Lung | C159: 0.95
A160: Breast Invasive | C160: 0.95
A161: Breast In Situ | C161: 0.95
A162: Cervix Invasive | C162: 0.95
A163: Cervix In Situ | C163: 0.95
A164: Melanoma of skin | C164: 0.95
A165: Colorectal | C165: 0.95
A166: Prostate | C166: 0.95
A167: Bladder | C167: 0.95
A168: Haematology | C168: 0.95
A169: All xnmsc Male | C169: 0.95
A170: All xnmsc Female | C170: 0.95
A171: Table 4B 5 year % completeness of ascertainment using the Flow method
A172: Lung | C172: 0.95
A173: Breast Invasive | C173: 0.95
A174: Breast In Situ | C174: 0.95
A175: Cervix Invasive | C175: 0.95
A176: Cervix In Situ | C176: 0.95
A177: Melanoma of skin | C177: 0.95
A178: Colorectal | C178: 0.95
A179: Prostate | C179: 0.95
A180: Bladder | C180: 0.95
A181: Haematology | C181: 0.95
A182: All xnmsc Male | C182: 0.95
A183: All xnmsc Female | C183: 0.95
A185: England and UK averages only include those registries that are able to report that specific measure
A186: OCIU and Thames only record Clarke level if Breslow thickness is not reported. If these two registries are excluded then the England average = 84.6% and UK average = 80.7%

Sheet Table 4
A1: TABLE 4: | C1: Trends in timeliness (as reported by registries)
A2: Proportion (%) of registrations completed (ONS Ready) within 18 months of year end (Target: 100%*)
A4: Registry | C4: 1997 | D4: 1998 | E4: 1999 | F4: 2000 | G4: 2001 | H4: 2002 | I4: 2003 | J4: 2004 | K4: 2005 | L4: 2006
C5: by 06/99 | D5: by 06/00 | E5: by 06/01 | F5: by 06/02 | G5: by 06/03 | H5: by 06/04 | I5: by 06/05 | J5: by 06/06 | K5: by 06/07 | L5: by 06/08
A6: England (average) | F6: 98 | G6: 96 | H6: 96.76464118 | I6: 99.11665632 | J6: 101.1848935 | K6: 101.020326 | L6: ='Table 1'!N4 -> 100.2579687
A7: Scotland | C7: 73.50304431 | D7: 44.30475433 | E7: 30.04756668 | F7: 25.07479789 | G7: 30.18904621 | H7: 44.69773349 | I7: 71.60161681 | J7: 59.7356458 | K7: 54.3955635 | L7: ='Table 1'!N13 -> 48.23379798
A8: Wales | C8: 103.1165265 | D8: 98.66914971 | E8: 103.6603221 | F8: 103.9161124 | G8: 101.1446691 | H8: 98.99601455 | I8: 104.6031335 | J8: 105.9888901 | K8: 101.8505644 | L8: ='Table 1'!N14 -> 103.1327139
A9: Northern Ireland | F9: 0 | G9: 0 | H9: 102.552994 | I9: 103.7741592 | J9: 104.6294927 | K9: 99.98077755 | L9: ='Table 1'!N15 -> 103.2837787
A10: UK average1 | C10: 80.19815296 | D10: 86.546234 | E10: 74.75341836 | F10: 90.56210103 | G10: 90 | H10: 92.19649564 | I10: 96.9623943 | J10: 97.67112622 | K10: 96.66247879 | L10: ='Table 1'!N16 -> 95.66149769
A12: * | B12: The target for completeness was originally 90%. This changed to 100% for the 2000 diagnosis data, reported in 2002.
A13: 1 | B13: GB average prior to 2002 published report
A14: Note: 1998 report published data were not included here because the definition of "ONS Ready" changed from 1999 onwards

Sheet Table 5
A1: TABLE 5: | C1: Trends in timeliness (as reported by ONS)
A2: Proportion (%) of registrations received by ONS within 18 months
A3: of year end (Target: 100%*)
A4: (as percentage of the previous 3 complete years held by ONS**)
A6: Registry | C6: 1999 | D6: 2000 | E6: 2001 | F6: 2002 | G6: 2003 | H6: 2004 | I6: 2005 | J6: 2006
C7: by 06/01 | D7: by 06/02 | E7: by 06/03 | F7: by 06/04 | G7: by 06/05 | H7: by 06/06 | I7: by 06/07 | J7: by 06/08
A8: England (average) | C8: 68.07785867 | D8: 64.19058456 | E8: 85.74858443 | F8: 95.7207699 | G8: 99.75093007 | H8: 101.3419628 | I8: 101.3419628 | J8: 101.1354375
B9: Eastern | C9: 120.8423944 | D9: 87.39685573 | E9: 84.8669137 | F9: 94.35276468 | G9: 102.0042181 | H9: 101.9874454 | I9: 105 | J9: 101.1689803
B10: North West | C10: 59.98075791 | D10: 0 | E10: 39.72491258 | F10: 97.1072818 | G10: 100.2188708 | H10: 103.9566907 | I10: 105 | J10: 105.0121877
B11: Northern & Yorkshire | C11: 76.82583281 | D11: 73.24855491 | E11: 69.4729334 | F11: 98.08778114 | G11: 99.42073226 | H11: 98.59926105 | I11: 93 | J11: 95.77791479
B12: Oxford | C12: 110.0673134 | D12: 100.7007708 | E12: 100.3233339 | F12: 95.89455488 | G12: 99.76343513 | H12: 105.5568218 | I12: 98 | J12: 99.96209865
B13: South & West | C13: 1.269749657 | D13: 0 | E13: 78.70584375 | F13: 95.87951493 | G13: 101.4005661 | H13: 102.2959948 | I13: 101 | J13: 102.6259493
B14: Thames | C14: 0 | D14: 94.43227881 | E14: 92.6654232 | F14: 91.73447908 | G14: 97.01101184 | H14: 97.11968303 | I14: 98 | J14: 99.62008684
B15: Trent | C15: 105.8115706 | D15: 103.0566382 | E15: 102.413006 | F15: 95.38000983 | G15: 99.80989695 | H15: 108.0967069 | I15: 108.0967069 | J15: 104.0294539
B16: West Midlands | C16: 99.13604947 | D16: 85.01722891 | E16: 98.07531614 | F16: 101.0069853 | G16: 102.4855733 | H16: 101.5148282 | I16: 100 | J16: 100.8868282
A18: * | B18: The target for completeness was originally 90%. This changed to 100% for the 2000 diagnosis data, reported in 2002.
A19: ** | B19: The % complete data were supplied via the management reports supplied quarterly by ONS, without any intervention
A20: ** Note: The % used in this table DIFFERS from the one used in table 1.

Sheet Table 6
A1: TABLE 6: | C1: Trends in % Death Certificate Only
A3: % DCO: males (target: 2%)
A4: Registry | C4: Year report published 1
C5: 1998 | D5: 1999 | E5: 2000 | F5: 2001 | G5: 2002 | H5: 2003 | I5: 2004 | J5: 2005 | K5: 2006 | L5: 2007 | M5: 2008
A6: England (average) | G6: 4.5 | H6: 5.1 | I6: 4.755555556 | J6: 4.193548495 | K6: 3.62130609 | L6: 4.107373987 | M6: 3.6375
B7: Eastern 2 | C7: 0.07 | D7: 0.3 | E7: 0.2 | F7: 0.4 | G7: 0.3 | H7: 0.19 | I7: 0.5 | J7: 0.23 | K7: 0.07 | L7: 4.8 | M7: 1.3
B8: North West 3 | C8: 3.233001283 | D8: 1.015318893 | E8: 2.412524512 | F8: 3.329832065 | G8: 3.863253007 | H8: 6.216340563 | I8: 5.882929684 | J8: 4.826905372 | K8: 4.716464177 | L8: 5.156007 | M8: 4.8
B9: Northern & Yorkshire4 | C9: 2.684120057 | D9: 5.25 | E9: 0.9 | F9: 1.4 | G9: 1.6 | H9: 1.4 | I9: 1.9 | J9: 1.6 | K9: 1.5 | L9: 2.1 | M9: 1.7
B10: Oxford | C10: 6.7 | D10: 1.4 | E10: 2.1 | F10: 1.1 | G10: 0.7 | H10: 1.6 | I10: 1.3 | J10: 1.2 | K10: 3.3 | L10: 2 | M10: 2.6
B11: South & West | C11: 6.082402675 | D11: 8 | E11: 9.154057772 | F11: 8.014877917 | G11: 10.6 | H11: 8.2 | I11: 7.6 | J11: 3.9 | K11: 3.3 | L11: 1.87 | M11: 1.3
B12: Thames 2 | C12: 21.01701396 | D12: 15.42236115 | E12: 16 | F12: 11.8 | G12: 7.1 | H12: 6.861841378 | I12: 4.8 | J12: 4.368755014 | K12: 4.677211566 | L12: 4.342486183 | M12: 3
B13: Trent 5 | D13: 9.03 | E13: 7.6 | F13: 7.686387686 | G13: 9.14770608 | H13: 9.3 | I13: 6.7 | J13: 5.994377437 | K13: 3.423003248 | L13: 2.589721045 | M13: 2.3
B14: West Midlands | C14: 10 | D14: 6.7 | E14: 6.2 | F14: 12.1 | G14: 5.5 | H14: 5.5 | I14: 9.2 | J14: 9.4 | K14: 6.3 | L14: 10.00077767 | M14: 12.1
A15: Scotland | C15: 2.4 | D15: 2.3 | E15: 0.93 | F15: 0.5219985086 | G15: 0.5244755245 | H15: 0.52 | I15: 0.5 | J15: 0.8577949162 | K15: 0.6700299543 | L15: 0.6570004531 | M15: 0.5
A16: Wales6 | D16: 10.2 | E16: 4.6 | F16: 3.15 | G16: 3.91 | H16: 6.865747831 | I16: 6.8 | J16: 5.220835334 | K16: 3.143507973 | L16: 3.2 | M16: 2.6
A17: Northern Ireland7 | G17: 1.5 | H17: 1.442150115 | I17: 1.56 | J17: 1.4 | K17: 1.4 | L17: 1.2 | M17: 0.9
A18: UK8 Average | C18: 6.674332431 | D18: 5.482696763 | E18: 4.450338148 | F18: 4.759705836 | G18: 4.0001643 | H18: 4.53820511 | I18: 4.305 | J18: 3.768380558 | K18: 3.150441062 | L18: 3.446908395 | M18: 3.009090909
A20: % DCO: females (target: 2%)
A21: Registry | C21: Year report published 1
C22: 1998 | D22: 1999 | E22: 2000 | F22: 2001 | G22: 2002 | H22: 2003 | I22: 2004 | J22: 2005 | K22: 2006 | L22: 2007 | M22: 2008
A23: England (average) | G23: 4.9 | H23: 5.2 | I23: 4.877777778 | J23: 4.339177974 | K23: 3.802617923 | L23: 3.891515296 | M23: 3.6125
B24: Eastern 2 | C24: 0.25 | D24: 0.2 | E24: 0.2 | F24: 0.5 | G24: 0.4 | H24: 0.38 | I24: 0.4 | J24: 0.093 | K24: 0.12 | L24: 5 | M24: 1
B25: North West 3 | C25: 3.725895044 | D25: 1.288660721 | E25: 2.711347919 | F25: 3.229575643 | G25: 4.144189409 | H25: 6.132283064 | I25: 5.336588537 | J25: 4.690376474 | K25: 4.482346578 | L25: 4.968281 | M25: 4.8
B26: Northern & Yorkshire4 | C26: 2.703490696 | D26: 5.1 | E26: 1.25 | F26: 1.6 | G26: 2 | H26: 1.7 | I26: 1.8 | J26: 1.5 | K26: 1.3 | L26: 1.68 | M26: 1.6
B27: Oxford | C27: 7.2 | D27: 1.6 | E27: 2.3 | F27: 1 | G27: 1.3 | H27: 1.9 | I27: 1.5 | J27: 1.8 | K27: 3.9 | L27: 1.6 | M27: 2.6
B28: South & West | C28: 6.981410446 | D28: 9 | E28: 9.477645258 | F28: 8.59061173 | G28: 10.9 | H28: 8.5 | I28: 8.7 | J28: 5.5 | K28: 3.6 | L28: 2.22 | M28: 1.6
B29: Thames 2 | C29: 19.23597644 | D29: 15.71755543 | E29: 16.1 | F29: 11.8 | G29: 7.8 | H29: 7.578003543 | I29: 4.9 | J29: 4.478715538 | K29: 4.831656416 | L29: 3.904443874 | M29: 3
B30: Trent 5 | D30: 8.52 | E30: 7.2 | F30: 6.831888428 | G30: 8.348540146 | H30: 9 | I30: 7.2 | J30: 5.567986231 | K30: 3.70705989 | L30: 2.149570903 | M30: 2.2
B31: West Midlands | C31: 11 | D31: 7.6 | E31: 6.8 | F31: 11.6 | G31: 5.9 | H31: 5 | I31: 9.8 | J31: 9.4 | K31: 6.9 | L31: 9.60982659 | M31: 12.1
A32: Scotland | C32: 2.8 | D32: 2.7 | E32: 0.97 | F32: 0.3161141095 | G32: 0.3291688487 | H32: 0.7 | I32: 0.4 | J32: 0.7981326707 | K32: 0.7233947349 | L32: 0.7492507493 | M32: 0.8
A33: Wales6 | D33: 8 | E33: 5.3 | F33: 3.65 | G33: 4.35 | H33: 7.582357746 | I33: 6.3 | J33: 6.006389776 | K33: 4.11196433 | L33: 4.1 | M33: 2.9
A34: Northern Ireland7 | G34: 2.5 | H34: 1.620029455 | I34: 1.29 | J34: 1.7 | K34: 2 | L34: 1.8 | M34: 1.3
A35: UK8 Average | C35: 6.883124388 | D35: 5.506462952 | E35: 4.708970438 | F35: 4.730511273 | G35: 4.29129575 | H35: 4.698479979 | I35: 4.324166667 | J35: 3.963093685 | K35: 3.421576697 | L35: 3.434670283 | M35: 3.081818182
A37: 1 | B37: Most, but not all, registries' analysis is of the diagnosis year two years prior to report publish year
A38: 2 | B38: Reports from 2007 reflect the boundary change between Eastern and Thames where Eastern includes Hertfordshire and Essex from 2007 onwards
A39: 3 | B39: For all reports, the figures for NWCIS were produced by multiplying the office area-specific estimates for the old MCCR (NWCIS: Liverpool) and NWCR (NWCIS: Manchester) registries by the proportions of ONS Ready cases reported for each area for each year
A40: 4 | B40: For 1998, 1999 and 2000 reports the separate estimates for Northern and Yorkshire registries have been averaged
A41: 5 | B41: In 1998 Trent submitted data for 1997 registrations, which was too soon after the calendar year was completed so the figures are not shown
A42: 6 | B42: Wales did not submit any data until the report published in 1999
A43: 7 | B43: Northern Ireland did not submit any data until the report published in 2002
A44: 8 | B44: GB average prior to 2002; England & Scotland average in 1998 report

Sheet Table 7
A1: TABLE 7: | C1: Trends in % Microscopically verified
A3: % Microscopically verified: males
A4: Registry | C4: Year report published 1
C5: 1998 | D5: 1999 | E5: 2000 | F5: 2001 | G5: 2002 | H5: 2003 | I5: 2004 | J5: 2005 | K5: 2006 | L5: 2007 | M5: 2008
A6: England (average) | G6: 79.4 | H6: 81.1 | I6: 80.95638767 | J6: 81.74410818 | K6: 82.69652453 | L6: 83.0803047 | M6: 84.325
B7: Eastern 2 | C7: 81.5 | D7: 82 | E7: 89.9 | F7: 82.2 | G7: 85.5 | H7: 85.7 | I7: 86.3 | J7: 86.9 | K7: 86.6 | L7: 82.5 | M7: 84.8
B8: North West 3 | C8: 77.98578336 | D8: 78.08066026 | E8: 76.91997627 | F8: 79.96418225 | G8: 78.5220462 | H8: 80.8459865 | I8: 77.42729117 | J8: 76.44384931 | K8: 77.53117 | L8: 76.40002 | M8: 77.7
B9: Northern & Yorkshire4 | C9: =(70.01332741004+78.05)/2 -> 74.03166371 | D9: 75.6 | E9: =(79.1+82.2)/2 -> 80.65 | F9: 82.8 | G9: 84.3 | H9: 85.1 | I9: 84.8 | J9: 85.1 | K9: 85.3 | L9: 86.21 | M9: 86.9
B10: Oxford | C10: 82 | D10: 84.6 | E10: 86.1 | F10: 86 | G10: 88.5 | H10: 87.7 | I10: 87.5 | J10: 87.8 | K10: 86.3 | L10: 87.5 | M10: 86.8
B11: South & West | C11: 76.04786504 | D11: 77 | E11: 85.81536388 | F11: 81.19340032 | G11: 63.4 | H11: 72.2 | I11: 77.2 | J11: 82.5 | K11: 85.4 | L11: 84.31 | M11: 82.4
B12: Thames 2 | C12: 66.6 | D12: 69.1552777 | E12: 70.1 | F12: 73.3 | G12: 76 | H12: 77.9580399 | I12: 77.97315885 | J12: 79.91393771 | K12: 79.98139135 | L12: 81.78348978 | M12: 84.6
B13: Trent5,6 | E13: 70.4 | F13: 74.20875421 | G13: 75.80645161 | H13: 76.8 | I13: 77.7184102 | J13: 78.33499592 | K13: 81.48579995 | L13: 83.07089761 | M13: 83.6
B14: West Midlands | C14: 75 | D14: 76.9 | E14: 79.4 | F14: 78.9 | G14: 84.5 | H14: 84 | I14: 83.4 | J14: 82.3 | K14: 84.09690946 | L14: 82.86803017 | M14: 87.8
A15: Scotland | C15: 81.3 | D15: 80.7 | E15: 84.6 | F15: 84.25718784 | G15: 84.21805467 | H15: 83.9 | I15: 85.41857178 | J15: 84.62449656 | K15: 84.27400284 | L15: 84.89654131 | M15: 86
A16: Wales7 | D16: 43 | E16: 43 | F16: 44.11 | G16: 68.16 | H16: 67.89178152 | I16: 66.18205632 | J16: 72.02352376 | K16: 70.91116173 | L16: 77.2 | M16: 77
A17: Northern Ireland8 | G17: 76.1 | H17: 75.35234349 | I17: 78.9 | J17: 82 | K17: 77.6 | L17: 83.5 | M17: 81.1
A18: UK9 Average | C18: 77.07078651 | D18: 78.03684343 | E18: 76.90961366 | F18: 80.20020139 | G18: 78.78608966 | H18: 79.77605041 | I18: 79.92567643 | J18: 81.19541616 | K18: 81.42115711 | L18: 82.74899808 | M18: 83.51818182
A20: % Microscopically verified: females
A21: Registry | C21: Year report published 1
C22: 1998 | D22: 1999 | E22: 2000 | F22: 2001 | G22: 2002 | H22: 2003 | I22: 2004 | J22: 2005 | K22: 2006 | L22: 2007 | M22: 2008
A23: England (average) | G23: 80.3 | H23: 81.4 | I23: 81.68160784 | J23: 82.73304521 | K23: 83.62328358 | L23: 84.91966098 | M23: 85.775
B24: Eastern 2 | C24: 83.6 | D24: 84.1 | E24: 85.2 | F24: 85 | G24: 86.8 | H24: 85.4 | I24: 87.8 | J24: 88.2 | K24: 87.9 | L24: 83.5 | M24: 86.5
B25: North West 3 | C25: 78.06497104 | D25: 78.31159783 | E25: 77.48201054 | F25: 80.14325556 | G25: 79.13734722 | H25: 80.92812522 | I25: 77.98073869 | J25: 76.39674325 | K25: 77.82587 | L25: 77.66052 | M25: 77.9
B26: Northern & Yorkshire4 | C26: =(69.394565390116+80.18)/2 -> 74.7872827 | D26: 76.4 | E26: =(79.5+82.7)/2 -> 81.1 | F26: 83.2 | G26: 84.5 | H26: 84.8 | I26: 84.4 | J26: 85.1 | K26: 85.7 | L26: 89.85 | M26: 89.9
B27: Oxford | C27: 83 | D27: 84.9 | E27: 86.8 | F27: 87.6 | G27: 87.8 | H27: 87.3 | I27: 87.5 | J27: 89 | K27: 86.7 | L27: 88.6 | M27: 88.2
B28: South & West | C28: 76.38118844 | D28: 77 | E28: 84.87786211 | F28: 81.0675563 | G28: 65.9 | H28: 72.8 | I28: 78.2 | J28: 84.5 | K28: 87.4 | L28: 86.16 | M28: 84.6
B29: Thames 2 | C29: 69.2 | D29: 70.44716975 | E29: 71.3 | F29: 74.8 | G29: 76.2 | H29: 78.28916447 | I29: 79.53493498 | J29: 79.77888103 | K29: 81.45198564 | L29: 84.21525816 | M29: 85.3
B30: Trent5,6 | E30: 74 | F30: 77.30870712 | G30: 78.47824104 | H30: 78.7 | I30: 78.94885561 | J30: 81.17039587 | K30: 83.89488426 | L30: 84.5770331 | M30: 85.9
B31: West Midlands | C31: 76 | D31: 78.8 | E31: 80.3 | F31: 81.1 | G31: 85.5 | H31: 84.4 | I31: 83.5 | J31: 83.6 | K31: 84.35528232 | L31: 84.79447656 | M31: 87.9
A32: Scotland | C32: 82.4 | D32: 81.8 | E32: 85.9 | F32: 85.55898227 | G32: 85.29961846 | H32: 84.8 | I32: 86.44238987 | J32: 86.238878 | K32: 85.76329331 | L32: 85.8427287 | M32: 86.8
A33: Wales7 | D33: 43 | E33: 43 | F33: 58.61 | G33: 61.12 | H33: 64.83800708 | I33: 61.71854217 | J33: 66.41533546 | K33: 70.54743622 | L33: 77.8 | M33: 79.1
A34: Northern Ireland8 | G34: 81.9 | H34: 80.94256259 | I34: 82.9 | J34: 85 | K34: 82.6 | L34: 85.1 | M34: 82.7
A35: UK9 Average | C35: 77.95884347 | D35: 78.84883361 | E35: 77.25815518 | F35: 81.46868451 | G35: 79.28642412 | H35: 80.24978201 | I35: 80.51628355 | J35: 81.8543017 | K35: 82.62669014 | L35: 84.37272877 | M35: 84.98181818
A37: 1 | B37: Most, but not all, registries' analysis is of the diagnosis year two years prior to report publish year
A38: 2 | B38: Reports from 2007 reflect the boundary change between Eastern and Thames where Eastern includes Hertfordshire and Essex from 2007 onwards
A39: 3 | B39: For all reports, the figures for NWCIS were produced by multiplying the office area-specific estimates for the old MCCR (NWCIS: Liverpool) and NWCR (NWCIS: Manchester) registries by the proportions of ONS Ready cases reported for each area for each year
A40: 4 | B40: For 1998, 1999 and 2000 reports the separate estimates for Northern and Yorkshire registries have been averaged
A41: 5 | B41: In 1998 Trent submitted data for 1997 registrations, which was too soon after the calendar year was completed so the figures are not shown
A42: 6 | B42: Prior to the report published in 2000, Trent excluded DCOs from these calculations, artificially inflating the %MV reported - to avoid confusion, the figures for 1998 and 1999 have not been shown
A43: 7 | B43: Wales did not submit any data until the report published in 1999
A44: 8 | B44: Northern Ireland did not submit any data until the report published in 2002
A45: 9 | B45: GB average prior to 2002; England & Scotland average in 1998 report

Sheet Table 8
A1: TABLE 8: | C1: Trends in Mortality : Incidence ratios
A3: Mortality : Incidence ratio - males
A4: Registry | C4: Year report published 1
C5: 1998 | D5: 1999 | E5: 2000 | F5: 2001 | G5: 2002 | H5: 2003 | I5: 2004 | J5: 2005 | K5: 2006 | L5: 2007 | M5: 2008
A6: England (average)2 | G6: 0.59 | H6: 0.58 | I6: 0.5901572468 | J6: 0.5650457865 | K6: 0.5434444918 | L6: 0.5385278087 | M6: 0.53625
B7: Eastern 3,4 | C7: 0.68 | D7: 0.638 | E7: 0.659 | F7: 0.635 | G7: 0.6 | H7: 0.64 | I7: 0.6 | J7: 0.5 | K7: 0.54 | L7: 0.54 | M7: 0.54
B8: North West 5 | C8: 0.65781728 | D8: 0.6409627522 | E8: 0.6568121323 | F8: 0.6196188231 | G8: 0.6095111023 | H8: 0.5907147737 | I8: 0.6094039552 | J8: 0.566101738 | K8: 0.5328962135 | L8: 0.524194 | M8: 0.57
B9: Northern & Yorkshire6 | C9: 0.71003591 | D9: 0.713 | E9: 0.681 | F9: 0.643 | G9: 0.627 | H9: 0.581 | I9: 0.6 | J9: 0.58 | K9: 0.57 | L9: 0.57 | M9: 0.56
B10: Oxford | C10: 0.61 | D10: 0.58 | E10: 0.536 | F10: 0.552 | G10: 0.526 | H10: 0.536 | I10: 0.54 | J10: 0.53 | K10: 0.5 | L10: 0.51 | M10: 0.5
B11: South & West | C11: 0.6002902391 | D11: 0.6 | E11: 0.6301886792 | F11: 0.58 | G11: 0.569 | H11: 0.53 | I11: 0.53 | J11: 0.53 | K11: 0.5 | L11: 0.51 | M11: 0.5
B12: Thames4 | C12: 0.6644236284 | D12: 0.6382305903 | E12: 0.631 | F12: 0.629 | G12: 0.6 | H12: n/a | I12: 0.6152273319 | J12: 0.6033841441 | K12: 0.5948325222 | L12: 0.561189578 | M12: 0.55
B13: Trent7 | D13: 0.69 | E13: 0.68 | F13: 0.6378066378 | G13: 0.6172851016 | H13: 0.611 | I13: 0.6304836895 | J13: 0.633082434 | K13: 0.5653368868 | L13: 0.5395252178 | M13: 0.53
B14: West Midlands | C14: 0.6 | D14: 0.6 | E14: 0.615 | F14: 0.5629 | G14: 0.56 | H14: 0.59 | I14: 0.57 | J14: 0.569 | K14: 0.5448897173 | L14: 0.5533136738 | M14: 0.54
A15: Scotland | C15: 0.637 | D15: 0.597 | E15: 0.621 | F15: 0.614301102 | G15: 0.5896376351 | H15: 0.615 | I15: 0.643278743 | J15: 0.6109926558 | K15: 0.5992432603 | L15: 0.576952122 | M15: 0.6
A16: Wales8 | D16: 0.621 | E16: 0.598 | F16: 0.6003 | G16: 0.5403 | H16: 0.5579377233 | I16: 0.5569089718 | J16: 0.5258041287 | K16: 0.5003416856 | L16: 0.5 | M16: 0.48
A17: Northern Ireland9 | G17: 0.61 | H17: 0.5729269092 | I17: 0.57 | J17: 0.58 | K17: 0.54 | L17: 0.56 | M17: 0.52
A18: UK10 Average | C18: 0.6592889466 | D18: 0.6407858825 | E18: 0.6371573899 | F18: 0.6076295274 | G18: 0.5868310306 | H18: 0.5831849211 | I18: 0.590133578 | J18: 0.5668507385 | K18: 0.5442154477 | L18: 0.5404704174 | M18: 0.5354545455
A20: Mortality : Incidence ratio - females
A21: Registry | C21: Year report published 1
C22: 1998 | D22: 1999 | E22: 2000 | F22: 2001 | G22: 2002 | H22: 2003 | I22: 2004 | J22: 2005 | K22: 2006 | L22: 2007 | M22: 2008
A23: England (average)2 | G23: 0.54 | H23: 0.54 | I23: 0.5506110211 | J23: 0.5118122946 | K23: 0.5081539713 | L23: 0.5057964766 | M23: 0.49625
B24: Eastern 3,4 | C24: 0.59 | D24: 0.578 | E24: 0.577 | F24: 0.558 | G24: 0.55 | H24: 0.57 | I24: 0.52 | J24: 0.45 | K24: 0.49 | L24: 0.54 | M24: 0.5
B25: North West 5 | C25: 0.61654816 | D25: 0.6025857755 | E25: 0.5930587006 | F25: 0.5874615753 | G25: 0.5589930029 | H25: 0.5596507008 | I25: 0.5692257483 | J25: 0.5221368514 | K25: 0.519949858 | L25: 0.5067884 | M25: 0.54
B26: Northern & Yorkshire6 | C26: 0.6590360718 | D26: 0.647 | E26: 0.609 | F26: 0.579 | G26: 0.557 | H26: 0.549 | I26: 0.57 | J26: 0.53 | K26: 0.53 | L26: 0.53 | M26: 0.53
B27: Oxford | C27: 0.53 | D27: 0.52 | E27: 0.547 | F27: 0.488 | G27: 0.506 | H27: 0.497 | I27: 0.5 | J27: 0.49 | K27: 0.46 | L27: 0.49 | M27: 0.46
B28: South & West | C28: 0.5479761531 | D28: 0.54 | E28: 0.5261177371 | F28: 0.51 | G28: 0.488 | H28: 0.47 | I28: 0.51 | J28: 0.49 | K28: 0.48 | L28: 0.46 | M28: 0.46
B29: Thames4 | C29: 0.5990705844 | D29: 0.5788269053 | E29: 0.575 | F29: 0.5537930327 | G29: 0.58 | H29: n/a | I29: 0.5832047609 | J29: 0.555649449 | K29: 0.5506097344 | L29: 0.5207209521 | M29: 0.51
B30: Trent7 | D30: 0.62 | E30: 0.596 | F30: 0.5482472672 | G30: 0.5492199617 | H30: 0.574 | I30: 0.5870773288 | J30: 0.5242685026 | K30: 0.5007826015 | L30: 0.4947282387 | M30: 0.48
B31: West Midlands | C31: 0.57 | D31: 0.55 | E31: 0.537 | F31: 0.5244 | G31: 0.53 | H31: 0.55 | I31: 0.54 | J31: 0.52 | K31: 0.5105987055 | L31: 0.5041342217 | M31: 0.49
A32: Scotland | C32: 0.584 | D32: 0.555 | E32: 0.558 | F32: 0.5615265998 | G32: 0.5452233111 | H32: 0.553 | I32: 0.5748582084 | J32: 0.5472025336 | K32: 0.5564173316 | L32: 0.524975025 | M32: 0.54
A33: Wales8 | D33: 0.56 | E33: 0.569 | F33: 0.5694 | G33: 0.5237 | H33: 0.5562210727 | I33: 0.5339185954 | J33: 0.5113099042 | K33: 0.493931137 | L33: 0.5 | M33: 0.49
A34: Northern Ireland9 | G34: 0.52 | H34: 0.5251840943 | I34: 0.5 | J34: 0.53 | K34: 0.49 | L34: 0.52 | M34: 0.5
A35: UK10 Average | C35: 0.6026739815 | D35: 0.5846939088 | E35: 0.5741681448 | F35: 0.5512415857 | G35: 0.5414386612 | H35: 0.5423669061 | I35: 0.5470229995 | J35: 0.5162352574 | K35: 0.5094778508 | L35: 0.508304258 | M35: 0.5
A37: 1 | B37: Most, but not all, registries' analysis is of the diagnosis year two years prior to report publish year
A38: 2 | B38: Thames did not receive any mortality data in 2001 and so were excluded from the england average for 2001 registrations in the 2003 report
A39: 3 | B39: Reports from 2007 reflect the boundary change between Eastern and Thames where Eastern includes Hertfordshire and Essex from 2007 onwards
A40: 4 | B40: Thames did not receive any mortality data in 2001 and so an average cannot be obtained for the new combined area of Eastern or figures presented for Thames
A41: 5 | B41: For all reports, the figures for NWCIS were produced by multiplying the office area-specific estimates for the old MCCR (NWCIS: Liverpool) and NWCR (NWCIS: Manchester) registries by the proportions of ONS Ready cases reported for each area for each year
A42: 6 | B42: For 1998, 1999 and 2000 reports the separate estimates for Northern and Yorkshire registries have been averaged
A43: 7 | B43: In 1998 Trent submitted data for 1997 registrations, which was too soon after the calendar year was completed so the figures are not shown
A44: 8 | B44: Wales did not submit any data until the report published in 1999
A45: 9 | B45: Northern Ireland did not submit any data until the report published in 2002
A46: 10 | B46: GB average prior to 2002; England & Scotland average in 1998 report

Sheet Table 9a
A1: TABLE 9A: | C1: Trends in completeness of the dataset - demographics and diagnostic details
A3: Completeness of the dataset (UK Average1)
A4: This table shows the % of cases with a Valid Known code on the database
B6: Dataset variable | C6: Year report published 2
C7: 1998 | D7: 1999 | E7: 2000 | F7: 2001 | G7: 2002 | H7: 2003 | I7: 2004 | J7: 2005 | K7: 2006 | L7: 2007 | M7: 2008
B8: Patient's name | C8: 99.998 | D8: 99.98833333 | E8: 99.99833333 | F8: 99.99884851 | G8: 99.94545455 | H8: 99.93506285 | I8: 99.98232932 | J8: 100 | K8: 99.99825492 | L8: 99.99833237 | M8: 99.99692886
B9: Patient's address | C9: 99.37777778 | D9: 99.77363636 | E9: 99.96262754 | F9: 99.71201689 | G9: 99.6307066 | H9: 96.33162142 | I9: 99.70182076 | J9: 99.78303477 | K9: 99.84702567 | L9: 99.80830616 | M9: 99.91510126
B10: Post code | C10: 99.54250838 | D10: 99.15044547 | E10: 99.69166667 | F10: 99.38571563 | G10: 99.48082182 | H10: 99.5 | I10: 99.56618341 | J10: 98.86538141 | K10: 99.79162334 | L10: 99.66034217 | M10: 99.79071656
B11: Sex | C11: 99.98869996 | D11: 99.99166667 | E11: 100 | F11: 99.9995152 | G11: 99.99869124 | H11: 99.99725787 | I11: 100 | J11: 99.99166667 | K11: 99.99808436 | L11: 99.99784829 | M11: 99.98181818
B12: Date of birth | C12: 99.60858881 | D12: 99.9731394 | E12: 99.95153533 | F12: 99.97381904 | G12: 99.99090909 | H12: 99.99324333 | I12: 100 | J12: 100 | K12: 99.99166667 | L12: 100 | M12: 100
B13: Unique Health Identifier 3 | C13: 30.6244446 | D13: 42.01084214 | E13: 56.04579041 | F13: 71.1550296 | G13: 76.11305797 | H13: 70.32488076 | I13: 88.6990624 | J13: 92.47821215 | K13: 94.18770686 | L13: 95.42138793 | M13: 96.75191216
B14: NHS number (England Only) | G14: 79.70562641 | H14: 82.6485967 | I14: 95.93806268 | J14: 98.6118494 | K14: 98.4149709 | L14: 99.12784688 | M14: 98.9875
B15: Ethnicity | K15: 27.54299753 | L15: 38.43948913 | M15: 50.22102618
B16: Anniversary (diagnosis) date | C16: 99.3677117 | D16: 99.39632679 | E16: 99.41291477 | F16: 99.78181818 | G16: 99.73636364 | H16: 99.75833333 | I16: 99.81666667 | J16: 99.825 | K16: 99.775 | L16: 99.71362413 | M16: 99.71329702
B17: Site of primary growth | C17: 97.38815733 | D17: 93.88629054 | E17: 94.37300411 | F17: 94.48917807 | G17: 94.69870426 | H17: 94.43153248 | I17: 95.0933699 | J17: 95.00365301 | K17: 95.60422727 | L17: 96.13154542 | M17: 96.19910881
B18: Date of death (where dead) | C18: 99.97160494 | D18: 99.93544348 | E18: 99.94554474 | F18: 99.8613748 | G18: 99.97454545 | H18: 99.96206872 | I18: 99.96961296 | J18: 99.98118951 | K18: 99.98807032 | L18: 99.97097452 | M18: 99.99204645
B19: Type of growth | C19: 85.13894391 | D19: 79.6786239 | E19: 82.14847611 | F19: 82.08411562 | G19: 82.95493503 | H19: 83.95425861 | I19: 84.56409417 | J19: 86.75582174 | K19: 87.73691353 | L19: 88.55581039 | M19: 87.42388612
B20: Behaviour of growth | C20: 94.95612902 | D20: 99.06270318 | E20: 98.49754251 | F20: 99.66101637 | G20: 99.61833447 | H20: 97.7667515 | I20: 98.38880738 | J20: 99.04410061 | K20: 99.66379308 | L20: 99.93234799 | M20: 99.93074883
B21: Basis of diagnosis | C21: 91.60776675 | D21: 94.00580347 | E21: 94.48376585 | F21: 94.94439299 | G21: 93.13211263 | H21: 94.05470984 | I21: 94.35458268 | J21: 95.84807606 | K21: 96.49013615 | L21: 97.46631275 | M21: 97.74310981
A23: 1 | B23: UK average for 2003; GB average prior to 2003; England & Scotland average in 1998 report
A24: 2 | B24: For most, but not all registries, the analysis is of the diagnosis year two years prior to report publish year
A25: 3 | B25: NHS Number for England and Wales; CHI for Scotland and Health and Social Care Number for Northern Ireland

Sheet Table 9b
A1: TABLE 9B: | C1: Trends in completeness of the dataset - treatment and prognostic tumour details
A3: Completeness of the dataset (UK Average1)
A4: This table shows the % of cases with a Valid Known code on the database
B6: Dataset variable | C6: Year report published 2
C7: 1998 | D7: 1999 | E7: 2000 | F7: 2001 | G7: 2002 | H7: 2003 | I7: 2004 | J7: 2005 | K7: 2006 | L7: 2007 | M7: 2008
B8: Treatment codes (% yes) 3
B9: All xnmsc - Therapeutic surgery | D9: 50.9274429 | E9: 48.2549809 | F9: 42.40223432 | G9: 46.07264324 | H9: 49.34952302 | I9: 45.21076804 | J9: 44.95838625 | K9: 43.20826032 | L9: 43.97178036 | M9: 45.60909091
B10: All xnmsc - Radiotherapy 4 | D10: 22.41650817 | E10: 22.66756412 | F10: 22.04115373 | G10: 18.91249927 | H10: 14.89183472 | I10: 16.79553729 | J10: 18.29883707 | K10: 18.13192647 | L10: 17.94013642 | M10: 17.76
B11: All xnmsc - Chemotherapy | D11: 11.41190984 | E11: 15.50911928 | F11: 15.877274 | G11: 16.61497011 | H11: 14.78670151 | I11: 15.8297061 | J11: 16.89726664 | K11: 18.83088094 | L11: 19.35856254 | M11: 19.50909091
B13: Grade - Breast cancer only 5 | C13: 49.12443016 | D13: 62.47250848 | E13: 65.49005027 | F13: 72.3938216 | G13: 73.05313531 | H13: 73.94159762 | I13: 76.43235668 | J13: 78.85456919 | K13: 78.45296812 | L13: 76.39333097 | M13: 83.01308218
A15: 1 | B15: UK average for 2003; GB average prior to 2003; England & Scotland average in 1998 report
A16: 2 | B16: For most, but not all registries, the analysis is of the diagnosis year two years prior to report publish year
A17: 3 | B17: The definition of treatment was changed between the 1998 and 1999 report so the data for 1998 report is not shown. Hormone treatment has not been shown as the definition was changed again in the 2007 report
A18: 4 | B18: Wales do not receive radiotherapy data and so the UK average excludes Wales for radiotherapy
A19: 5 | B19: Only grade for breast cancer has been shown, and the staging information been removed from the table since the definitions for which staging data should be collected/presented have changed in the 2007 report
